bitfinex-derivatives/quotes_BTCF0:USTF0_20241221
["timestamp","ask_amount","ask_price","bid_price","bid_amount"]
[1734814854965,0.108,97500.0,97499.0,0.42333247]
[1734814856060,0.0082,97500.0,97499.0,0.42333247]
[1734814856265,0.0327,97529.0,97521.0,0.051289]
[1734814856568,0.0321,97540.0,97535.0,0.051281]
[1734814856863,0.0316,97539.0,97537.0,0.05128]
[1734814858962,0.0346,97539.0,97537.0,0.05228]
[1734814860167,0.0396,97539.0,97537.0,0.05228]
[1734814861861,0.0396,97539.0,97537.0,0.001]
[1734814862165,0.0396,97539.0,97515.0,0.0327]
[1734814862371,0.05128,97537.0,97528.0,0.051285]
[1734814862770,0.0396,97539.0,97528.0,0.051285]
[1734814862771,0.051281,97536.0,97528.0,0.051285]
[1734814862965,0.0396,97539.0,97520.0,0.12124083]
[1734814863167,0.0396,97539.0,97534.0,0.051282]
[1734814863368,0.0346,97539.0,97537.0,0.05128]
[1734814863563,0.05128,97538.0,97531.0,0.3608]
[1734814863765,0.007,97537.0,97531.0,0.3608]
[1734814864071,0.007,97537.0,97532.0,0.051282]
[1734814865062,0.05128,97538.0,97532.0,0.051282]
[1734814865259,0.005,97537.0,97534.0,0.001]
[1734814865768,0.014,97537.0,97535.0,0.051281]
[1734814866874,0.005,97537.0,97533.0,0.051282]
[1734814867177,0.014,97537.0,97535.0,0.001]
[1734814867366,0.014,97537.0,97536.0,0.412081]
[1734814867568,0.009,97537.0,97536.0,0.412081]
[1734814867772,0.014,97537.0,97536.0,0.412081]
[1734814869275,0.014,97537.0,97536.0,0.413081]
[1734814872070,0.014,97537.0,97536.0,0.412081]
[1734814872071,0.005,97537.0,97536.0,0.412081]
[1734814872371,0.014,97537.0,97536.0,0.413081]
[1734814872678,0.005,97537.0,97536.0,0.412081]
[1734814872862,0.008,97537.0,97536.0,0.412081]
[1734814873667,0.005,97537.0,97536.0,0.412081]
[1734814873870,0.00153823,97559.0,97558.0,0.051269]
[1734814874069,0.00153823,97559.0,97558.0,0.772869]
[1734814875977,0.00553823,97559.0,97558.0,0.773869]
[1734814876574,0.05680723,97559.0,97558.0,0.001]
[1734814876873,0.00553823,97559.0,97538.0,0.3608]
[1734814877080,0.00553823,97559.0,97546.0,0.051275]
[1734814877081,0.051274,97549.0,97546.0,0.051275]
[1734814877285,0.051274,97549.0,97547.0,0.051275]
[1734814878771,0.051275,97547.0,97546.0,0.3608]
[1734814878969,0.051275,97547.0,97545.0,0.051276]
[1734814879777,0.051279,97539.0,97538.0,0.3608]
[1734814880578,0.01006792,97539.0,97536.0,0.051281]
[1734814880769,0.01006792,97538.0,97526.0,0.3608]
[1734814880972,0.051283,97533.0,97530.0,0.051283]
[1734814881173,0.01006792,97536.0,97526.0,0.3608]
[1734814881369,0.01006792,97535.0,97526.0,0.3608]
[1734814881585,0.0301,97536.0,97525.0,0.051286]
[1734814881586,0.051285,97529.0,97525.0,0.051286]
[1734814881787,0.051286,97527.0,97525.0,0.051286]
[1734814882481,0.01011348,97527.0,97523.0,0.3608]
[1734814882676,0.031,97528.0,97526.0,0.053286]
[1734814883480,0.001,97527.0,97526.0,0.053286]
[1734814884179,0.001,97527.0,97526.0,0.051286]
[1734814884776,0.002,97527.0,97526.0,0.051286]
[1734814885076,0.001,97527.0,97526.0,0.051286]
[1734814885282,0.001,97528.0,97526.0,0.051286]
[1734814885478,0.001,97527.0,97526.0,0.051286]
[1734814885880,0.051286,97527.0,97526.0,0.051286]
[1734814886080,0.06233737,97527.0,97526.0,0.051286]
[1734814887576,0.052286,97527.0,97526.0,0.051286]
[1734814887776,0.06233737,97527.0,97526.0,0.051286]
[1734814887978,0.051287,97524.0,97523.0,0.3608]
[1734814888179,0.01005137,97526.0,97524.0,0.051287]
[1734814888481,0.01005137,97526.0,97523.0,0.3608]
[1734814888482,0.001,97527.0,97523.0,0.3608]
[1734814888681,0.001,97527.0,97526.0,0.051286]
[1734814888682,0.002,97527.0,97526.0,0.051286]
[1734814889083,0.002,97527.0,97523.0,0.3608]
[1734814889286,0.01005137,97526.0,97523.0,0.3608]
[1734814889481,0.051287,97524.0,97523.0,0.3608]
[1734814890486,0.01833411,97524.0,97523.0,0.412088]
[1734814890687,0.0100975,97524.0,97523.0,0.412088]
[1734814890884,0.002,97527.0,97526.0,0.051286]
[1734814891481,0.12176509,97535.0,97523.0,0.412648]
[1734814891677,0.12176509,97535.0,97534.0,0.412082]
[1734814892687,0.01012112,97535.0,97534.0,0.412082]
[1734814892888,0.051278,97541.0,97539.0,0.051279]
[1734814893090,0.01013511,97540.0,97539.0,0.051279]
[1734814894796,0.01513511,97540.0,97539.0,0.051279]
[1734814895990,0.01813511,97540.0,97539.0,0.051279]
[1734814897996,0.008,97540.0,97539.0,0.051279]
[1734814898197,0.01813511,97540.0,97539.0,0.051279]
[1734814898389,0.008,97540.0,97539.0,0.051279]
[1734814898589,0.01813511,97540.0,97539.0,0.051279]
[1734814899089,0.01815012,97540.0,97534.0,0.3608]
[1734814899304,0.05128,97539.0,97523.0,0.412087]
[1734814899489,0.051286,97527.0,97524.0,0.051287]
[1734814899690,0.04274981,97526.0,97525.0,0.051286]
[1734814900389,0.01014981,97531.0,97523.0,0.3608]
[1734814900584,0.12124083,97533.0,97523.0,0.3608]
[1734814900785,0.12124083,97533.0,97532.0,0.051283]
[1734814901002,0.00826471,97539.0,97538.0,0.05128]
[1734814901287,0.12476509,97540.0,97538.0,0.05128]
[1734814901490,0.12176509,97540.0,97539.0,0.0319]
[1734814902386,0.12476509,97540.0,97539.0,0.0319]
[1734814902792,0.05280723,97559.0,97539.0,0.0319]
[1734814902793,0.00153823,97559.0,97539.0,0.0319]
[1734814903092,0.00153823,97559.0,97558.0,0.412069]
[1734814904590,0.00753823,97559.0,97558.0,0.412069]
[1734814904794,0.01253823,97559.0,97558.0,0.413069]
[1734814905788,0.02261616,97559.0,97558.0,0.413069]
[1734814906284,0.02261616,97559.0,97558.0,0.052269]
[1734814907792,0.02261616,97559.0,97558.0,0.001]
[1734814907997,0.051278,97541.0,97540.0,0.24463951]
[1734814908197,0.06964049,97541.0,97540.0,0.24463951]
[1734814909005,0.0696889,97541.0,97540.0,0.24463951]
[1734814909891,0.051281,97536.0,97529.0,0.36136]
[1734814910091,0.0184109,97535.0,97534.0,0.051282]
[1734814911001,0.0101379,97535.0,97534.0,0.051282]
[1734814911296,0.051284,97530.0,97529.0,0.3608]
[1734814911998,0.0614219,97530.0,97529.0,0.3608]
[1734814913293,0.0644219,97530.0,97529.0,0.3608]
[1734814913901,0.0654219,97530.0,97529.0,0.3608]
[1734814914102,0.07662421,97530.0,97529.0,0.3608]
[1734814914300,0.07660455,97530.0,97529.0,0.3608]
[1734814914906,0.02339728,97530.0,97529.0,0.412084]
[1734814915197,0.01511824,97530.0,97529.0,0.412084]
[1734814915403,0.005,97530.0,97529.0,0.412084]
[1734814916403,0.001,97530.0,97529.0,0.412084]
[1734814916705,0.002,97530.0,97529.0,0.412084]
[1734814917207,0.001,97530.0,97529.0,0.416084]
[1734814917701,0.051281,97537.0,97536.0,0.051281]
[1734814918699,0.052281,97537.0,97536.0,0.051281]
[1734814920203,0.054281,97537.0,97536.0,0.051281]
[1734814920610,0.051283,97533.0,97531.0,0.051283]
[1734814921708,0.052283,97533.0,97531.0,0.051283]
[1734814922906,0.06260755,97533.0,97531.0,0.051283]
[1734814923204,0.01132455,97533.0,97529.0,0.3608]
[1734814923526,0.051284,97530.0,97529.0,0.3608]
[1734814924211,0.0614234,97530.0,97529.0,0.3618]
[1734814924411,0.0938234,97530.0,97529.0,0.001]
[1734814924711,0.0425394,97530.0,97519.0,0.051289]
[1734814924923,0.20486558,97530.0,97529.0,0.005]
[1734814925110,0.09393005,97530.0,97529.0,0.005]
[1734814925418,0.09392142,97530.0,97529.0,0.005]
[1734814926307,0.01023742,97530.0,97529.0,0.004]
[1734814926508,0.12234892,97531.0,97530.0,0.051284]
[1734814926910,0.051279,97540.0,97534.0,0.051282]
[1734814927117,0.01032106,97545.0,97536.0,0.3608]
[1734814927118,0.23439253,97539.0,97536.0,0.3608]
[1734814927819,0.05128,97538.0,97536.0,0.3608]
[1734814928013,0.05128,97538.0,97537.0,0.3608]
[1734814928406,0.05128,97538.0,97535.0,0.0328]
[1734814929013,0.005,97539.0,97527.0,0.051285]
[1734814929211,0.051283,97533.0,97527.0,0.051285]
[1734814929603,0.01023742,97535.0,97525.0,0.3608]
[1734814929808,0.051286,97527.0,97525.0,0.3608]
[1734814930106,0.051282,97534.0,97527.0,0.051285]
[1734814930308,0.01023742,97535.0,97525.0,0.3608]
[1734814930513,0.051286,97527.0,97525.0,0.3608]
[1734814930911,0.051286,97527.0,97525.0,0.3628]
[1734814932521,0.051286,97527.0,97525.0,0.3618]
[1734814933019,0.06157311,97527.0,97525.0,0.3638]
[1734814933217,0.051286,97527.0,97525.0,0.3638]
[1734814933520,0.01032033,97526.0,97525.0,0.3628]
[1734814933923,0.01032033,97526.0,97525.0,0.002]
[1734814934620,0.01853654,97526.0,97525.0,0.002]
[1734814935918,0.06840776,97526.0,97525.0,0.001]
[1734814936120,0.07844129,97526.0,97515.0,0.3608]
[1734814936342,0.051291,97516.0,97515.0,0.3608]
[1734814936528,0.06163303,97516.0,97515.0,0.3608]
[1734814937324,0.06163303,97516.0,97515.0,0.3638]
[1734814937622,0.06163303,97516.0,97515.0,0.3708]
[1734814937920,0.01034203,97516.0,97515.0,0.3708]
[1734814938821,0.01034203,97526.0,97515.0,0.3708]
[1734814939116,0.01034203,97525.0,97515.0,0.3708]
[1734814939424,0.0103484,97524.0,97515.0,0.3708]
[1734814939622,0.0103484,97523.0,97515.0,0.3708]
[1734814939819,0.0103484,97522.0,97515.0,0.3708]
[1734814940024,0.0103484,97521.0,97515.0,0.3708]
[1734814940229,0.0103484,97523.0,97522.0,0.051288]
[1734814940729,0.0113484,97523.0,97522.0,0.051288]
[1734814942222,0.001,97523.0,97522.0,0.051288]
[1734814942526,0.09169106,97525.0,97524.0,0.051287]
[1734814943318,0.01034449,97527.0,97526.0,0.051286]
[1734814943521,0.01034449,97528.0,97526.0,0.051286]
[1734814945231,0.09169106,97531.0,97529.0,0.051284]
[1734814945431,0.09169106,97531.0,97530.0,0.0313]
[1734814946324,0.01031758,97531.0,97530.0,0.0313]
[1734814946628,0.01231758,97531.0,97530.0,0.0313]
[1734814947419,0.01331758,97531.0,97530.0,0.0313]
[1734814947821,0.01334181,97531.0,97530.0,0.0313]
[1734814948617,0.09169106,97532.0,97530.0,0.0313]
[1734814948824,0.09169106,97536.0,97531.0,0.051283]
[1734814949029,0.09169106,97536.0,97535.0,0.412081]
[1734814950324,0.09569106,97536.0,97535.0,0.412081]
[1734814950524,0.0372,97536.0,97535.0,0.412081]
[1734814952329,0.0392,97536.0,97535.0,0.412081]
[1734814952831,0.0392,97536.0,97528.0,0.18416918]
[1734814952832,0.051284,97529.0,97528.0,0.18416918]
[1734814953038,0.05947264,97529.0,97527.0,0.18416918]
[1734814953230,0.00818864,97528.0,97527.0,0.18416918]
[1734814954326,0.051288,97522.0,97517.0,0.05129]
[1734814954535,0.00818864,97521.0,97517.0,0.05129]
[1734814954732,0.00818864,97520.0,97517.0,0.05129]
[1734814955028,0.00818864,97519.0,97517.0,0.05129]
[1734814955329,0.00818864,97521.0,97517.0,0.05129]
[1734814955636,0.00818864,97520.0,97517.0,0.05129]
[1734814955936,0.05947764,97521.0,97519.0,0.051289]
[1734814956136,0.00818864,97520.0,97519.0,0.051289]
[1734814956730,0.05947764,97521.0,97519.0,0.051289]
[1734814956933,0.00818864,97520.0,97519.0,0.054289]
[1734814957439,0.00818864,97520.0,97519.0,0.060289]
[1734814957829,0.051289,97521.0,97519.0,0.057289]
[1734814958137,0.051289,97521.0,97519.0,0.060289]
[1734814959433,0.06173144,97521.0,97519.0,0.060289]
[1734814960632,0.0103119,97520.0,97519.0,0.060289]
[1734814962047,0.0103119,97520.0,97519.0,0.009]
[1734814962232,0.0103119,97520.0,97519.0,0.006]
[1734814962433,0.0103119,97520.0,97519.0,0.009]
[1734814965942,0.0103119,97520.0,97519.0,0.3698]
[1734814967045,0.0103119,97520.0,97519.0,0.009]
[1734814967246,0.0103119,97520.0,97519.0,0.42109]
[1734814967748,0.0103119,97521.0,97519.0,0.42109]
[1734814967937,0.09160058,97522.0,97521.0,0.051289]
[1734814968645,0.00052001,97546.0,97521.0,0.051289]
[1734814968646,0.04170058,97524.0,97523.0,0.051288]
[1734814968846,0.04170058,97524.0,97523.0,0.412088]
[1734814969845,0.04170058,97524.0,97523.0,0.414088]
[1734814970546,0.01031666,97540.0,97539.0,0.051279]
[1734814970742,0.01031666,97540.0,97539.0,0.412079]
[1734814971340,0.01030791,97540.0,97539.0,0.412079]
[1734814971540,0.01230791,97540.0,97539.0,0.412079]
[1734814971951,0.01830791,97540.0,97539.0,0.412079]
[1734814972147,0.02649806,97540.0,97539.0,0.412079]
[1734814974337,0.02649806,97540.0,97539.0,0.3608]
[1734814974338,0.02650175,97540.0,97539.0,0.3608]
[1734814974542,0.07778075,97540.0,97537.0,0.05128]
[1734814974744,0.06978075,97539.0,97537.0,0.05128]
[1734814975055,0.01850175,97538.0,97537.0,0.05128]
[1734814977253,0.005,97539.0,97537.0,0.05128]
[1734814977551,0.01732964,97538.0,97537.0,0.05128]
[1734814977751,0.01731123,97538.0,97537.0,0.05128]
[1734814978056,0.007,97538.0,97537.0,0.05128]
[1734814978258,0.005,97538.0,97537.0,0.05128]
[1734814978750,0.01531123,97538.0,97537.0,0.41208]
[1734814979060,0.005,97538.0,97537.0,0.41208]
[1734814979245,0.007,97538.0,97537.0,0.41208]
[1734814985959,0.007,97538.0,97537.0,0.59607663]
[1734814987553,0.007,97538.0,97537.0,0.41208]
[1734814988461,0.004,97538.0,97537.0,0.41208]
[1734814988761,0.00153822,97550.0,97549.0,0.051274]
[1734814989062,0.00153822,97550.0,97549.0,0.412074]
[1734814989261,0.12216774,97566.0,97565.0,0.051265]
[1734814989457,0.01024586,97566.0,97565.0,0.412065]
[1734814989658,0.12216774,97569.0,97568.0,0.051264]
[1734814990056,0.12216774,97569.0,97565.0,0.3608]
[1734814990057,0.01024586,97577.0,97565.0,0.3608]
[1734814990256,0.05126,97575.0,97572.0,0.051262]
[1734814990967,0.01018612,97577.0,97568.0,0.002]
[1734814991260,0.051262,97572.0,97568.0,0.002]
[1734814991853,0.051262,97572.0,97568.0,0.001]
[1734814992466,0.2136113,97579.0,97568.0,0.001]
[1734814993058,0.2136113,97579.0,97565.0,0.3608]
[1734814993059,0.09183403,97579.0,97565.0,0.3608]
[1734814993254,0.006,97575.0,97573.0,0.051261]
[1734814993457,0.006,97575.0,97574.0,0.3608]
[1734814993998,0.04757603,97579.0,97575.0,0.05126]
[1734814994162,0.04757603,97579.0,97578.0,0.051259]
[1734814994361,0.04657603,97579.0,97578.0,0.051259]
[1734814994566,0.04057603,97579.0,97578.0,0.051259]
[1734814995461,0.04057603,97579.0,97574.0,0.3628]
[1734814995762,0.04057603,97579.0,97574.0,0.002]
[1734814996063,0.051265,97567.0,97561.0,0.1838581]
[1734814997065,0.051265,97567.0,97564.0,0.051266]
[1734814997361,0.0328,97566.0,97565.0,0.001]
[1734814997561,0.0328,97566.0,97565.0,0.002]
[1734814997770,0.0328,97566.0,97553.0,0.3608]
[1734814997771,0.051269,97559.0,97553.0,0.3608]
[1734814997957,0.05127,97557.0,97553.0,0.3608]
[1734814998667,0.051271,97556.0,97551.0,0.2351311]
[1734814998859,0.0304,97558.0,97551.0,0.1838581]
[1734814999054,0.051272,97553.0,97551.0,0.1838581]
[1734814999460,0.051272,97553.0,97538.0,0.1838581]
[1734814999658,0.051272,97553.0,97550.0,0.051273]
[1734815000168,0.055272,97553.0,97551.0,0.001]
[1734815000665,0.0354,97558.0,97541.0,0.051278]
[1734815000666,0.01022047,97552.0,97541.0,0.051278]
[1734815000859,0.051276,97546.0,97537.0,0.1838581]
[1734815001173,0.0315,97545.0,97537.0,0.1838581]
[1734815001561,0.051279,97540.0,97537.0,0.1838581]
[1734815002064,0.051279,97540.0,97530.0,0.3608]
[1734815002065,0.051283,97532.0,97530.0,0.3608]
[1734815002370,0.0633,97531.0,97530.0,0.3608]
[1734815002586,0.0633,97531.0,97529.0,0.1838581]
[1734815002587,0.051284,97530.0,97529.0,0.1838581]
[1734815002866,0.051286,97526.0,97525.0,0.24514413]
[1734815003169,0.0615059,97526.0,97525.0,0.24514413]
[1734815003362,0.0615059,97526.0,97514.0,0.24514413]
[1734815003667,0.051291,97516.0,97514.0,0.24514413]
[1734815004958,0.051291,97516.0,97508.0,0.051295]
[1734815005154,0.051291,97516.0,97503.0,0.3915]
[1734815005572,0.051291,97516.0,97515.0,0.00453813]
[1734815006078,0.051291,97516.0,97515.0,0.00853813]
[1734815006461,0.051291,97516.0,97515.0,0.00653813]
[1734815006662,0.052291,97516.0,97515.0,0.00153813]
[1734815008166,0.06261836,97516.0,97515.0,0.00153813]
[1734815013469,0.051292,97515.0,97503.0,0.3915]
[1734815013673,0.01132736,97516.0,97503.0,0.3915]
[1734815014079,0.051298,97504.0,97503.0,0.3915]
[1734815015171,0.051298,97504.0,97503.0,0.3935]
[1734815015470,0.051298,97504.0,97503.0,0.3975]
[1734815015872,0.051298,97504.0,97503.0,0.0397]
[1734815016060,0.051298,97504.0,97503.0,0.0377]
[1734815016379,0.051298,97504.0,97503.0,0.0407]
[1734815016676,0.051294,97511.0,97504.0,0.051297]
[1734815016875,0.051295,97510.0,97504.0,0.051297]
[1734815017071,0.3762,97518.0,97504.0,0.051297]
[1734815017278,0.051297,97506.0,97504.0,0.051297]
[1734815017870,0.051296,97507.0,97503.0,0.0407]
[1734815018069,0.051296,97507.0,97503.0,0.0377]
[1734815018270,0.051296,97507.0,97504.0,0.003]
[1734815018475,0.38627607,97518.0,97504.0,0.003]
[1734815018476,0.051297,97505.0,97504.0,0.009]
[1734815018877,0.051297,97505.0,97504.0,0.006]
[1734815019079,0.051297,97505.0,97503.0,0.0407]
[1734815019580,0.051297,97505.0,97504.0,0.006]
[1734815019784,0.051297,97505.0,97504.0,0.009]
[1734815021081,0.051297,97505.0,97504.0,0.003]
[1734815021282,0.051297,97505.0,97503.0,0.0407]
[1734815021689,0.051297,97505.0,97504.0,0.006]
[1734815022188,0.051297,97505.0,97504.0,0.009]
[1734815022394,0.06152524,97505.0,97504.0,0.009]
[1734815024987,0.01022824,97505.0,97504.0,0.009]
[1734815025189,0.36132001,97508.0,97507.0,0.051296]
[1734815025190,0.00052001,97508.0,97507.0,0.051296]
[1734815025382,0.13228343,97525.0,97521.0,0.051288]
[1734815025695,0.12177727,97522.0,97521.0,0.051288]
[1734815025897,0.12177727,97522.0,97510.0,0.3608]
[1734815026086,0.12177727,97522.0,97517.0,0.051291]
[1734815027099,0.051288,97523.0,97518.0,0.3608]
[1734815027697,0.003,97522.0,97518.0,0.3608]
[1734815027900,0.003,97522.0,97518.0,0.41209]
[1734815028103,0.005,97522.0,97518.0,0.41209]
[1734815028395,0.002,97522.0,97519.0,0.0311]
[1734815028983,0.005,97522.0,97519.0,0.0311]
[1734815029187,0.01514082,97522.0,97519.0,0.0311]
[1734815029589,0.01014082,97521.0,97519.0,0.0311]
[1734815029785,0.01514082,97522.0,97519.0,0.0311]
[1734815029989,0.005,97522.0,97519.0,0.08239]
[1734815030196,0.01016152,97521.0,97519.0,0.08239]
[1734815030499,0.01016152,97520.0,97519.0,0.08239]
[1734815030996,0.01016152,97521.0,97519.0,0.08239]
[1734815031201,0.01016152,97520.0,97519.0,0.08239]
[1734815031602,0.01016332,97520.0,97519.0,0.08239]
[1734815032498,0.01316332,97520.0,97519.0,0.08239]
[1734815032806,0.003,97520.0,97519.0,0.08239]
[1734815033301,0.004,97520.0,97519.0,0.08239]
[1734815033998,0.003,97520.0,97519.0,0.08239]
[1734815034201,0.12177727,97527.0,97523.0,0.051288]
[1734815034403,0.12177727,97527.0,97526.0,0.3608]
[1734815034804,0.13194059,97527.0,97526.0,0.391]
[1734815034998,0.13194059,97532.0,97527.0,0.051285]
[1734815035198,0.01016332,97531.0,97530.0,0.051284]
[1734815035407,0.01016332,97531.0,97530.0,0.412084]
[1734815035605,0.07187727,97532.0,97530.0,0.412084]
[1734815035804,0.02197727,97532.0,97530.0,0.412084]
[1734815036305,0.003,97531.0,97530.0,0.412084]
[1734815037716,0.0101229,97542.0,97538.0,0.051279]
[1734815037908,0.051277,97543.0,97541.0,0.3608]
[1734815038809,0.051277,97543.0,97541.0,0.412078]
[1734815038810,0.004,97542.0,97541.0,0.412078]
[1734815039402,0.004,97542.0,97541.0,0.413078]
[1734815040411,0.004,97543.0,97542.0,0.051278]
[1734815040611,0.004,97543.0,97542.0,0.081578]
[1734815041110,0.051269,97558.0,97542.0,0.0303]
[1734815041311,0.051269,97558.0,97545.0,0.051276]
[1734815041611,0.01002183,97553.0,97545.0,0.051276]
[1734815042223,0.084366,97565.0,97545.0,0.051276]
[1734815042608,0.1704607,97569.0,97564.0,0.051266]
[1734815042911,0.15222159,97569.0,97568.0,0.051264]
[1734815043303,0.0317,97578.0,97565.0,0.3608]
[1734815043304,0.18392159,97578.0,97570.0,0.051263]
[1734815043506,0.15222159,97578.0,97577.0,0.3608]
[1734815044915,0.36132001,97592.0,97589.0,0.051253]
[1734815045112,0.3608,97592.0,97589.0,0.051253]
[1734815045411,0.3608,97592.0,97577.0,0.3608]
[1734815045412,0.051254,97588.0,97585.0,0.051255]
[1734815046003,0.36960636,97592.0,97585.0,0.051255]
[1734815046311,0.051252,97590.0,97589.0,0.001]
[1734815047621,0.051256,97584.0,97577.0,0.412059]
[1734815047918,0.12118158,97590.0,97577.0,0.3608]
[1734815048121,0.051258,97579.0,97566.0,0.0325]
[1734815048504,0.0326,97578.0,97566.0,0.0325]
[1734815048904,0.0326,97578.0,97577.0,0.001]
[1734815050314,0.0376,97578.0,97577.0,0.001]
[1734815050510,0.0376,97578.0,97576.0,0.051259]
[1734815051515,0.0376,97578.0,97577.0,0.001]
[1734815052005,0.0376,97578.0,97569.0,0.051263]
[1734815052209,0.0376,97578.0,97576.0,0.001]
[1734815052407,0.0458633,97578.0,97577.0,0.051259]
[1734815052911,0.0458633,97578.0,97576.0,0.001]
[1734815053101,0.051259,97577.0,97576.0,0.001]
[1734815053613,0.051261,97574.0,97571.0,0.3608]
[1734815053814,0.0458633,97578.0,97567.0,0.3608]
[1734815054114,0.0315,97577.0,97556.0,0.0332]
[1734815054313,0.3608,97572.0,97555.0,0.3608]
[1734815054616,0.051265,97566.0,97561.0,0.051267]
[1734815054824,0.051266,97565.0,97555.0,0.3608]
[1734815055111,0.051266,97564.0,97555.0,0.3608]
[1734815055617,0.051266,97564.0,97555.0,0.3618]
[1734815055915,0.0331,97571.0,97562.0,0.051267]
[1734815056106,0.0331,97571.0,97560.0,0.051268]
[1734815056301,0.0331,97571.0,97555.0,0.3618]
[1734815056508,0.051269,97559.0,97555.0,0.3618]
[1734815056820,0.051269,97559.0,97555.0,0.3608]
[1734815057513,0.05127,97557.0,97555.0,0.3618]
[1734815058016,0.05127,97557.0,97555.0,0.3608]
[1734815059707,0.05327,97557.0,97555.0,0.3608]
[1734815061319,0.01010709,97556.0,97522.0,0.3608]
[1734815061518,0.051284,97530.0,97522.0,0.3921]
[1734815061813,0.12118158,97532.0,97522.0,0.60594413]
[1734815061814,0.051288,97523.0,97522.0,0.60594413]
[1734815062326,0.051288,97523.0,97522.0,0.24514413]
[1734815062622,0.051288,97523.0,97522.0,0.24714413]
[1734815062811,0.066688,97523.0,97522.0,0.24714413]
[1734815063115,0.066688,97523.0,97492.0,0.24555494]
[1734815063116,0.39155498,97523.0,97492.0,0.24555494]
[1734815063317,0.48198158,97506.0,97492.0,0.24483494]
[1734815063508,0.051298,97504.0,97492.0,0.24483494]
[1734815063916,0.051298,97504.0,97493.0,0.051303]
[1734815064312,0.051298,97503.0,97496.0,0.00412739]
[1734815064623,0.051299,97501.0,97496.0,0.01312739]
[1734815065213,0.051299,97501.0,97496.0,0.01296848]
[1734815065918,0.051299,97501.0,97496.0,0.014]
[1734815066116,8.397e-05,97500.0,97496.0,0.014]
[1734815066624,8.397e-05,97500.0,97499.0,0.3608]
[1734815068217,8.397e-05,97500.0,97499.0,0.3698]
[1734815068418,8.397e-05,97500.0,97499.0,0.009]
[1734815068620,8.397e-05,97500.0,97499.0,0.3698]
[1734815069015,8.397e-05,97500.0,97499.0,0.3738]
[1734815070112,0.01548397,97500.0,97499.0,0.013]
[1734815070930,8.397e-05,97500.0,97499.0,0.3738]
[1734815071224,8.397e-05,97500.0,97499.0,0.4039]
[1734815071613,8.397e-05,97500.0,97499.0,0.4339]
[1734815073319,8.397e-05,97500.0,97499.0,0.4661]
[1734815086021,8.397e-05,97500.0,97499.0,0.013]
[1734815088253,8.397e-05,97500.0,97499.0,0.3738]
[1734815089136,8.397e-05,97500.0,97499.0,0.404]
[1734815091535,0.01025526,97500.0,97499.0,0.404]
[1734815091936,8.397e-05,97500.0,97499.0,0.404]
[1734815092141,0.01025526,97500.0,97499.0,0.404]
[1734815092433,8.397e-05,97500.0,97499.0,0.404]
[1734815092641,0.01025526,97500.0,97499.0,0.404]
[1734815092828,8.397e-05,97500.0,97499.0,0.404]
[1734815093335,0.01025526,97500.0,97499.0,0.404]
[1734815093536,0.01025526,97500.0,97499.0,0.4345]
[1734815093732,8.397e-05,97500.0,97499.0,0.4345]
[1734815093927,0.0102557,97500.0,97499.0,0.4345]
[1734815094233,0.0102557,97500.0,97499.0,0.3738]
[1734815094739,0.01845264,97500.0,97499.0,0.3738]
[1734815094933,0.15222159,97509.0,97507.0,0.051296]
[1734815095129,0.18266591,97511.0,97509.0,0.051295]
[1734815095935,4.342e-05,97510.0,97509.0,0.051295]
[1734815096835,0.09128841,97515.0,97509.0,0.051295]
[1734815096836,0.09128841,97515.0,97514.0,0.051292]
[1734815097037,0.09128841,97515.0,97514.0,0.412092]
[1734815098640,0.04138841,97528.0,97527.0,0.051285]
[1734815098942,0.04138841,97528.0,97527.0,0.412085]
[1734815099440,0.12171119,97532.0,97531.0,0.051283]
[1734815099640,0.12171119,97532.0,97531.0,0.412083]
[1734815100036,0.12171119,97542.0,97541.0,0.051278]
[1734815100229,0.12171119,97542.0,97541.0,0.412078]
[1734815101836,0.12171119,97552.0,97541.0,0.412078]
[1734815102035,0.12171119,97552.0,97551.0,0.412073]
[1734815103133,0.00153815,97554.0,97553.0,0.051272]
[1734815105337,0.00353815,97554.0,97553.0,0.051272]
[1734815106648,0.002,97554.0,97553.0,0.051272]
[1734815108057,0.002,97554.0,97553.0,0.05847259]
[1734815109250,0.002,97554.0,97553.0,0.051272]
[1734815110245,0.0475,97554.0,97551.0,0.3608]
[1734815110450,0.098772,97554.0,97553.0,0.051272]
[1734815111337,0.051272,97552.0,97551.0,0.3608]
[1734815111850,0.0465,97554.0,97546.0,0.05140658]
[1734815112044,0.051275,97548.0,97546.0,0.05140658]
[1734815113046,0.002,97552.0,97549.0,0.051274]
[1734815113253,0.0317,97551.0,97549.0,0.051274]
[1734815113852,0.082973,97551.0,97549.0,0.051274]
[1734815114045,0.0317,97551.0,97543.0,0.051277]
[1734815114240,0.051275,97547.0,97543.0,0.051277]
[1734815114749,0.051275,97547.0,97535.0,0.3608]
[1734815114945,0.051275,97547.0,97544.0,0.051276]
[1734815115143,0.051275,97547.0,97535.0,0.3608]
[1734815115144,0.051278,97542.0,97539.0,0.051279]
[1734815115353,0.0322,97541.0,97539.0,0.051279]
[1734815115656,0.0322,97541.0,97535.0,0.3608]
[1734815116152,0.0322,97541.0,97539.0,0.051279]
[1734815116553,0.0322,97541.0,97535.0,0.3608]
[1734815116743,0.0342,97541.0,97535.0,0.3608]
[1734815116942,0.05128,97537.0,97535.0,0.3608]
[1734815117657,0.051287,97524.0,97521.0,0.051288]
[1734815118058,0.051287,97524.0,97522.0,0.051288]
[1734815118756,0.081983,97531.0,97516.0,0.3608]
[1734815118956,0.081983,97531.0,97529.0,0.051284]
[1734815119157,0.081983,97531.0,97511.0,0.00752215]
[1734815119158,0.12171119,97534.0,97533.0,0.051282]
[1734815120361,0.0513795,97546.0,97538.0,0.051279]